[Event "Titled Tuesday Blitz May 25 2021"]
[White "Timmermans, Mark"]
[Black "Dong, Bao Nghia"]
[WhiteFideId "1026399"]
[BlackFideId "12400343"]
[WhiteElo "2460"]
[BlackElo "2409"]
[Result "0-1"]
[Round "11"]
[TimeControl "180+1"]
[Date "2021.05.25"]
[WhiteClock "0:00:11"]
[BlackClock "0:00:21"]

1. b4 {[%clk 0:03:00]}  a5 {[%clk 0:02:59]} 2. b5 {[%clk 0:02:54]}  Nf6 {[%clk 0:02:53]} 3. Bb2 {[%clk 0:02:54]}  e6 {[%clk 0:02:53]} 4. a4 {[%clk 0:02:55]}  d5 {[%clk 0:02:53]} 5. e3 {[%clk 0:02:55]}  Nbd7 {[%clk 0:02:53]} 6. c4 {[%clk 0:02:56]}  b6 {[%clk 0:02:54]} 7. Nf3 {[%clk 0:02:56]}  Bb7 {[%clk 0:02:54]} 8. Be2 {[%clk 0:02:57]}  Be7 {[%clk 0:02:54]} 9. O-O {[%clk 0:02:57]}  O-O {[%clk 0:02:54]} 10. d4 {[%clk 0:02:57]}  c6 {[%clk 0:02:55]} 11. Nbd2 {[%clk 0:02:52]}  dxc4 {[%clk 0:02:54]} 12. Bxc4 {[%clk 0:02:53]}  cxb5 {[%clk 0:02:54]} 13. axb5 {[%clk 0:02:54]}  Rc8 {[%clk 0:02:52]} 14. Qb3 {[%clk 0:02:54]}  Bb4 {[%clk 0:02:51]} 15. Rac1 {[%clk 0:02:51]}  Nd5 {[%clk 0:02:51]} 16. Ne4 {[%clk 0:02:45]}  N7f6 {[%clk 0:02:49]} 17. Ng3 {[%clk 0:02:40]}  Qe7 {[%clk 0:02:30]} 18. Ne5 {[%clk 0:02:39]}  Rfd8 {[%clk 0:02:25]} 19. Bd3 {[%clk 0:02:36]}  Qd6 {[%clk 0:02:12]} 20. Bb1 {[%clk 0:02:21]}  Bd2 {[%clk 0:02:06]} 21. Rxc8 {[%clk 0:02:02]}  Rxc8 {[%clk 0:02:06]} 22. Qd3 {[%clk 0:01:38]}  Qb4 {[%clk 0:02:02]} 23. Ba3 {[%clk 0:01:34]}  Qc3 {[%clk 0:02:02]} 24. Rd1 {[%clk 0:01:30]}  Qxd3 {[%clk 0:02:00]} 25. Bxd3 {[%clk 0:01:31]}  Bb4 {[%clk 0:01:59]} 26. Bb2 {[%clk 0:01:27]}  a4 {[%clk 0:01:59]} 27. Ra1 {[%clk 0:01:26]}  Ra8 {[%clk 0:01:55]} 28. Ba3 {[%clk 0:01:23]}  Bxa3 {[%clk 0:01:49]} 29. Rxa3 {[%clk 0:01:24]}  Nb4 {[%clk 0:01:50]} 30. Be2 {[%clk 0:01:17]}  Nc2 {[%clk 0:01:41]} 31. Ra2 {[%clk 0:01:17]}  a3 {[%clk 0:01:40]} 32. Nc4 {[%clk 0:01:15]}  Bd5 {[%clk 0:01:35]} 33. Rxc2 {[%clk 0:01:14]}  a2 {[%clk 0:01:35]} 34. Rxa2 {[%clk 0:01:10]}  Rxa2 {[%clk 0:01:35]} 35. Nxb6 {[%clk 0:01:11]}  Ra1+ {[%clk 0:01:29]} 36. Nf1 {[%clk 0:01:01]}  Bb7 {[%clk 0:01:26]} 37. f3 {[%clk 0:01:00]}  Ne8 {[%clk 0:01:12]} 38. Kf2 {[%clk 0:00:56]}  Nd6 {[%clk 0:01:12]} 39. Nd7 {[%clk 0:00:50]}  Rb1 {[%clk 0:01:11]} 40. Nc5 {[%clk 0:00:48]}  Bc8 {[%clk 0:01:03]} 41. Nd2 {[%clk 0:00:42]}  Rb2 {[%clk 0:01:03]} 42. Ncb3 {[%clk 0:00:42]}  Bd7 {[%clk 0:00:55]} 43. b6 {[%clk 0:00:42]}  Ba4 {[%clk 0:00:55]} 44. Nc5 {[%clk 0:00:37]}  Bc6 {[%clk 0:00:52]} 45. Ndb3 {[%clk 0:00:26]}  Bd5 {[%clk 0:00:34]} 46. Na5 {[%clk 0:00:19]}  Rxb6 {[%clk 0:00:34]} 47. e4 {[%clk 0:00:20]}  Ba8 {[%clk 0:00:32]} 48. e5 {[%clk 0:00:20]}  Nf5 {[%clk 0:00:31]} 49. Nc4 {[%clk 0:00:17]}  Rb8 {[%clk 0:00:25]} 50. Na6 {[%clk 0:00:13]}  Rd8 {[%clk 0:00:23]} 51. Nb6 {[%clk 0:00:11]}  Nxd4 {[%clk 0:00:22]} 52. Nc7 {[%clk 0:00:11]}  Bb7 {[%clk 0:00:20]} 53. Nc4 {[%clk 0:00:11]}  Nxe2 {[%clk 0:00:20]} 54. Kxe2 {[%clk 0:00:11]}  Rc8 {[%clk 0:00:21]} 0-1


[Site "https://www.chess.com"]

[Event "Titled Tuesday Blitz May 25 2021"]
[White "Titus, Andrew"]
[Black "Samsonkin, Artiom"]
[WhiteFideId "2059770"]
[BlackFideId "13503111"]
[WhiteElo "2044"]
[BlackElo "2513"]
[Result "0-1"]
[Round "11"]
[TimeControl "180+1"]
[Date "2021.05.25"]
[WhiteClock "0:00:02"]
[BlackClock "0:00:04"]

1. e4 {[%clk 0:03:00]}  c5 {[%clk 0:02:58]} 2. Nf3 {[%clk 0:03:00]}  d6 {[%clk 0:02:58]} 3. d4 {[%clk 0:03:01]}  cxd4 {[%clk 0:02:59]} 4. Nxd4 {[%clk 0:03:01]}  Nf6 {[%clk 0:03:00]} 5. Nc3 {[%clk 0:03:02]}  a6 {[%clk 0:02:59]} 6. h3 {[%clk 0:03:02]}  e5 {[%clk 0:02:59]} 7. Nde2 {[%clk 0:03:02]}  h5 {[%clk 0:02:58]} 8. Ng1 {[%clk 0:03:02]}  b5 {[%clk 0:02:49]} 9. Bg5 {[%clk 0:02:55]}  Bb7 {[%clk 0:02:42]} 10. a4 {[%clk 0:02:55]}  b4 {[%clk 0:02:37]} 11. Nd5 {[%clk 0:02:54]}  Nbd7 {[%clk 0:02:35]} 12. Bc4 {[%clk 0:02:51]}  Qc8 {[%clk 0:02:25]} 13. Qe2 {[%clk 0:02:40]}  Nxd5 {[%clk 0:02:18]} 14. exd5 {[%clk 0:02:39]}  Nb6 {[%clk 0:02:16]} 15. Bb3 {[%clk 0:02:38]}  Bxd5 {[%clk 0:02:15]} 16. a5 {[%clk 0:02:35]}  Bxb3 {[%clk 0:02:06]} 17. axb6 {[%clk 0:02:35]}  Bd5 {[%clk 0:02:05]} 18. Nf3 {[%clk 0:02:31]}  Qb7 {[%clk 0:01:56]} 19. O-O {[%clk 0:02:02]}  f6 {[%clk 0:01:42]} 20. Be3 {[%clk 0:02:00]}  Kf7 {[%clk 0:01:41]} 21. Rfd1 {[%clk 0:01:52]}  Be7 {[%clk 0:01:41]} 22. Ne1 {[%clk 0:01:51]}  Bc6 {[%clk 0:01:29]} 23. f4 {[%clk 0:01:46]}  d5 {[%clk 0:01:24]} 24. fxe5 {[%clk 0:01:46]}  fxe5 {[%clk 0:01:25]} 25. Qf2+ {[%clk 0:01:43]}  Kg8 {[%clk 0:01:12]} 26. Bc5 {[%clk 0:01:43]}  Rf8 {[%clk 0:00:53]} 27. Qe3 {[%clk 0:01:28]}  Bxc5 {[%clk 0:00:34]} 28. Qxc5 {[%clk 0:01:27]}  Rb8 {[%clk 0:00:35]} 29. Nd3 {[%clk 0:01:24]}  Qxb6 {[%clk 0:00:28]} 30. Qxb6 {[%clk 0:01:24]}  Rxb6 {[%clk 0:00:28]} 31. Nxe5 {[%clk 0:01:24]}  Bb7 {[%clk 0:00:27]} 32. Rd4 {[%clk 0:01:19]}  Rhh6 {[%clk 0:00:26]} 33. Nd3 {[%clk 0:01:16]}  Rhe6 {[%clk 0:00:23]} 34. Nxb4 {[%clk 0:01:12]}  Re2 {[%clk 0:00:22]} 35. Kf1 {[%clk 0:01:08]}  Re4 {[%clk 0:00:17]} 36. Rxe4 {[%clk 0:01:05]}  dxe4 {[%clk 0:00:18]} 37. c3 {[%clk 0:01:05]}  e3 {[%clk 0:00:16]} 38. Ke2 {[%clk 0:01:03]}  Bxg2 {[%clk 0:00:15]} 39. h4 {[%clk 0:01:03]}  g5 {[%clk 0:00:13]} 40. hxg5 {[%clk 0:01:02]}  h4 {[%clk 0:00:14]} 41. Kxe3 {[%clk 0:01:02]}  h3 {[%clk 0:00:15]} 42. Kf2 {[%clk 0:01:02]}  Rb5 {[%clk 0:00:12]} 43. g6 {[%clk 0:00:49]}  Rg5 {[%clk 0:00:10]} 44. Kg1 {[%clk 0:00:45]}  a5 {[%clk 0:00:10]} 45. Nd3 {[%clk 0:00:39]}  Be4+ {[%clk 0:00:10]} 46. Kh2 {[%clk 0:00:40]}  Bxd3 {[%clk 0:00:11]} 47. Kxh3 {[%clk 0:00:40]}  Bxg6 {[%clk 0:00:10]} 48. b4 {[%clk 0:00:38]}  axb4 {[%clk 0:00:11]} 49. cxb4 {[%clk 0:00:39]}  Kf7 {[%clk 0:00:11]} 50. Kh4 {[%clk 0:00:37]}  Rg2 {[%clk 0:00:10]} 51. b5 {[%clk 0:00:35]}  Rb2 {[%clk 0:00:09]} 52. Rf1+ {[%clk 0:00:32]}  Ke6 {[%clk 0:00:09]} 53. Kg5 {[%clk 0:00:31]}  Be4 {[%clk 0:00:08]} 54. Re1 {[%clk 0:00:30]}  Ke5 {[%clk 0:00:08]} 55. Kg4 {[%clk 0:00:25]}  Rg2+ {[%clk 0:00:08]} 56. Kh3 {[%clk 0:00:25]}  Rg6 {[%clk 0:00:08]} 57. Rf1 {[%clk 0:00:24]}  Kd4 {[%clk 0:00:07]} 58. Rf8 {[%clk 0:00:22]}  Ke3 {[%clk 0:00:07]} 59. Kh4 {[%clk 0:00:22]}  Rg1 {[%clk 0:00:04]} 60. Kh5 {[%clk 0:00:21]}  Rb1 {[%clk 0:00:04]} 61. Kg5 {[%clk 0:00:18]}  Rxb5+ {[%clk 0:00:04]} 62. Kf6 {[%clk 0:00:18]}  Kd4 {[%clk 0:00:04]} 63. Rd8+ {[%clk 0:00:17]}  Bd5 {[%clk 0:00:04]} 64. Rd6 {[%clk 0:00:16]}  Rb2 {[%clk 0:00:04]} 65. Rd8 {[%clk 0:00:15]}  Rf2+ {[%clk 0:00:04]} 66. Kg5 {[%clk 0:00:15]}  Ke5 {[%clk 0:00:05]} 67. Rb8 {[%clk 0:00:15]}  Rg2+ {[%clk 0:00:04]} 68. Kh4 {[%clk 0:00:13]}  Be4 {[%clk 0:00:05]} 69. Kh3 {[%clk 0:00:13]}  Rg6 {[%clk 0:00:04]} 70. Rf8 {[%clk 0:00:13]}  Bf5+ {[%clk 0:00:04]} 71. Kh2 {[%clk 0:00:12]}  Kf4 {[%clk 0:00:05]} 72. Rf7 {[%clk 0:00:11]}  Rg5 {[%clk 0:00:05]} 73. Rf8 {[%clk 0:00:11]}  Kf3 {[%clk 0:00:06]} 74. Rh8 {[%clk 0:00:10]}  Kf2 {[%clk 0:00:04]} 75. Rh6 {[%clk 0:00:09]}  Be4 {[%clk 0:00:02]} 76. Rf6+ {[%clk 0:00:07]}  Bf3 {[%clk 0:00:03]} 77. Rh6 {[%clk 0:00:07]}  Rg2+ {[%clk 0:00:03]} 78. Kh3 {[%clk 0:00:07]}  Rg1 {[%clk 0:00:03]} 79. Kh4 {[%clk 0:00:07]}  Rg4+ {[%clk 0:00:03]} 80. Kh3 {[%clk 0:00:07]}  Re4 {[%clk 0:00:03]} 81. Kh2 {[%clk 0:00:04]}  Re1 {[%clk 0:00:03]} 82. Kh3 {[%clk 0:00:02]}  Rh1# {[%clk 0:00:04]} 0-1


[Site "https://www.chess.com"]

[Event "Titled Tuesday Blitz May 25 2021"]
[White "Tsyhanchuk_Stanislav"]
[Black "Aradhya, Garg"]
[BlackFideId "25006746"]
[WhiteElo "2484"]
[BlackElo "2146"]
[Result "0-1"]
[Round "11"]
[TimeControl "180+1"]
[Date "2021.05.25"]
[WhiteClock "0:00:03"]
[BlackClock "0:00:05"]

1. e4 {[%clk 0:03:00]}  e5 {[%clk 0:03:00]} 2. Nf3 {[%clk 0:03:01]}  Nc6 {[%clk 0:03:00]} 3. Bc4 {[%clk 0:03:01]}  Nf6 {[%clk 0:03:00]} 4. O-O {[%clk 0:03:01]}  Nxe4 {[%clk 0:02:59]} 5. d4 {[%clk 0:02:53]}  Nd6 {[%clk 0:02:59]} 6. Bb3 {[%clk 0:02:27]}  e4 {[%clk 0:02:55]} 7. Ne5 {[%clk 0:02:00]}  Be7 {[%clk 0:02:52]} 8. Nc3 {[%clk 0:01:42]}  O-O {[%clk 0:02:51]} 9. Bf4 {[%clk 0:01:36]}  Bg5 {[%clk 0:02:37]} 10. Bg3 {[%clk 0:01:32]}  Kh8 {[%clk 0:02:31]} 11. f4 {[%clk 0:01:26]}  exf3 {[%clk 0:02:28]} 12. Qxf3 {[%clk 0:01:27]}  Bf6 {[%clk 0:02:26]} 13. Rad1 {[%clk 0:00:56]}  b6 {[%clk 0:02:25]} 14. Ne4 {[%clk 0:00:50]}  Nxe4 {[%clk 0:02:14]} 15. Qxe4 {[%clk 0:00:51]}  Bxe5 {[%clk 0:02:14]} 16. dxe5 {[%clk 0:00:50]}  Qe7 {[%clk 0:02:11]} 17. e6 {[%clk 0:00:34]}  fxe6 {[%clk 0:02:08]} 18. Bh4 {[%clk 0:00:26]}  Qc5+ {[%clk 0:02:07]} 19. Kh1 {[%clk 0:00:25]}  Ba6 {[%clk 0:02:02]} 20. Rfe1 {[%clk 0:00:22]}  Na5 {[%clk 0:01:50]} 21. Ba4 {[%clk 0:00:22]}  Bb7 {[%clk 0:01:48]} 22. Qg4 {[%clk 0:00:22]}  b5 {[%clk 0:01:41]} 23. Rxd7 {[%clk 0:00:22]}  Rg8 {[%clk 0:01:40]} 24. Bb3 {[%clk 0:00:13]}  Nxb3 {[%clk 0:01:39]} 25. axb3 {[%clk 0:00:14]}  Raf8 {[%clk 0:01:39]} 26. h3 {[%clk 0:00:06]}  Qxc2 {[%clk 0:01:33]} 27. Re2 {[%clk 0:00:06]}  Qxb3 {[%clk 0:01:21]} 28. Kh2 {[%clk 0:00:05]}  Bd5 {[%clk 0:01:19]} 29. Rxc7 {[%clk 0:00:05]}  a5 {[%clk 0:01:16]} 30. Bg3 {[%clk 0:00:05]}  Qb4 {[%clk 0:01:13]} 31. Qxb4 {[%clk 0:00:03]}  axb4 {[%clk 0:01:13]} 32. Be5 {[%clk 0:00:04]}  h6 {[%clk 0:01:07]} 33. Rd2 {[%clk 0:00:05]}  Rf5 {[%clk 0:01:03]} 34. Bd4 {[%clk 0:00:03]}  b3 {[%clk 0:01:00]} 35. Bc3 {[%clk 0:00:03]}  Kh7 {[%clk 0:00:59]} 36. Rd4 {[%clk 0:00:03]}  Rg5 {[%clk 0:00:42]} 37. g4 {[%clk 0:00:04]}  Rf8 {[%clk 0:00:36]} 38. Kg3 {[%clk 0:00:03]}  Rf3+ {[%clk 0:00:35]} 39. Kh2 {[%clk 0:00:04]}  Rf2+ {[%clk 0:00:29]} 40. Kg1 {[%clk 0:00:02]}  Rg2+ {[%clk 0:00:25]} 41. Kf1 {[%clk 0:00:02]}  Rg3 {[%clk 0:00:25]} 42. Ke1 {[%clk 0:00:02]}  Rxh3 {[%clk 0:00:25]} 43. Rf4 {[%clk 0:00:02]}  h5 {[%clk 0:00:18]} 44. Rff7 {[%clk 0:00:01]}  Rxg4 {[%clk 0:00:12]} 45. Bxg7 {[%clk 0:00:02]}  Kg6 {[%clk 0:00:10]} 46. Rf6+ {[%clk 0:00:01]}  Kg5 {[%clk 0:00:10]} 47. Rf2 {[%clk 0:00:01]}  Re4+ {[%clk 0:00:08]} 48. Kd2 {[%clk 0:00:01]}  Kg4 {[%clk 0:00:04]} 49. Bf6 {[%clk 0:00:02]}  Kg3 {[%clk 0:00:04]} 50. Rg7+ {[%clk 0:00:02]}  Kxf2 {[%clk 0:00:04]} 51. Rf7 {[%clk 0:00:03]}  Rf3 {[%clk 0:00:04]} 52. Bh4+ {[%clk 0:00:02]}  Rxh4 {[%clk 0:00:04]} 53. Rg7 {[%clk 0:00:03]}  Rg4 {[%clk 0:00:04]} 54. Re7 {[%clk 0:00:03]}  h4 {[%clk 0:00:05]} 55. Rh7 {[%clk 0:00:03]}  h3 {[%clk 0:00:04]} 56. Rh5 {[%clk 0:00:04]}  Kg2 {[%clk 0:00:05]} 57. Rg5 {[%clk 0:00:03]}  Rxg5 {[%clk 0:00:05]} 0-1


[Site "https://www.chess.com"]

[Event "Titled Tuesday Blitz May 25 2021"]
[White "Turzo, Attila"]
[Black "Khusnutdinov, Rustam"]
[WhiteFideId "704954"]
[BlackFideId "13701703"]
[WhiteElo "2499"]
[BlackElo "2571"]
[Result "0-1"]
[Round "11"]
[TimeControl "180+1"]
[Date "2021.05.25"]
[WhiteClock "0:00:13"]
[BlackClock "0:00:57"]

1. d4 {[%clk 0:02:56]}  Nf6 {[%clk 0:02:57]} 2. Nf3 {[%clk 0:02:55]}  c5 {[%clk 0:02:52]} 3. c3 {[%clk 0:02:50]}  d5 {[%clk 0:02:49]} 4. Bf4 {[%clk 0:02:49]}  Nc6 {[%clk 0:02:49]} 5. Nbd2 {[%clk 0:02:42]}  cxd4 {[%clk 0:02:48]} 6. cxd4 {[%clk 0:02:42]}  Qb6 {[%clk 0:02:48]} 7. Nb3 {[%clk 0:02:40]}  Bg4 {[%clk 0:02:42]} 8. Ne5 {[%clk 0:02:28]}  Bh5 {[%clk 0:02:25]} 9. Nxc6 {[%clk 0:02:21]}  bxc6 {[%clk 0:02:16]} 10. Qc2 {[%clk 0:02:15]}  Bg6 {[%clk 0:02:14]} 11. Qc1 {[%clk 0:02:08]}  e6 {[%clk 0:02:00]} 12. Bd2 {[%clk 0:02:02]}  Ne4 {[%clk 0:01:58]} 13. e3 {[%clk 0:01:45]}  Nxd2 {[%clk 0:01:51]} 14. Nxd2 {[%clk 0:01:46]}  c5 {[%clk 0:01:52]} 15. dxc5 {[%clk 0:01:05]}  Bxc5 {[%clk 0:01:53]} 16. Be2 {[%clk 0:01:05]}  O-O {[%clk 0:01:53]} 17. O-O {[%clk 0:01:04]}  Rfc8 {[%clk 0:01:53]} 18. Nb3 {[%clk 0:01:00]}  Be7 {[%clk 0:01:47]} 19. Qe1 {[%clk 0:00:55]}  Bf6 {[%clk 0:01:41]} 20. Rc1 {[%clk 0:00:44]}  Bxb2 {[%clk 0:01:40]} 21. Rxc8+ {[%clk 0:00:44]}  Rxc8 {[%clk 0:01:41]} 22. Qd1 {[%clk 0:00:43]}  a5 {[%clk 0:01:18]} 23. Bd3 {[%clk 0:00:40]}  a4 {[%clk 0:01:16]} 24. Bxg6 {[%clk 0:00:39]}  hxg6 {[%clk 0:01:15]} 25. Nd2 {[%clk 0:00:35]}  Rc1 {[%clk 0:01:13]} 26. Qe2 {[%clk 0:00:32]}  Rc2 {[%clk 0:01:11]} 27. Qd3 {[%clk 0:00:32]}  Qc6 {[%clk 0:01:11]} 28. g3 {[%clk 0:00:26]}  Qc3 {[%clk 0:01:10]} 29. Qxc3 {[%clk 0:00:23]}  Bxc3 {[%clk 0:01:11]} 30. Nb1 {[%clk 0:00:23]}  Bb2 {[%clk 0:01:11]} 31. Rd1 {[%clk 0:00:20]}  Kf8 {[%clk 0:01:10]} 32. Kf1 {[%clk 0:00:21]}  Ke7 {[%clk 0:01:10]} 33. Ke1 {[%clk 0:00:21]}  Kf6 {[%clk 0:01:07]} 34. Rd2 {[%clk 0:00:22]}  Rc1+ {[%clk 0:01:06]} 35. Rd1 {[%clk 0:00:22]}  Kf5 {[%clk 0:01:03]} 36. Rxc1 {[%clk 0:00:21]}  Bxc1 {[%clk 0:01:04]} 37. Nc3 {[%clk 0:00:20]}  a3 {[%clk 0:01:02]} 38. h3 {[%clk 0:00:20]}  Bb2 {[%clk 0:01:01]} 39. Nd1 {[%clk 0:00:19]}  Bf6 {[%clk 0:00:57]} 40. Ke2 {[%clk 0:00:19]}  d4 {[%clk 0:00:52]} 41. Kf3 {[%clk 0:00:12]}  Ke5 {[%clk 0:00:48]} 42. e4 {[%clk 0:00:10]}  Bg5 {[%clk 0:00:42]} 43. h4 {[%clk 0:00:10]}  Bh6 {[%clk 0:00:43]} 44. Ke2 {[%clk 0:00:06]}  Kxe4 {[%clk 0:00:43]} 45. f3+ {[%clk 0:00:07]}  Kd5 {[%clk 0:00:43]} 46. Kd3 {[%clk 0:00:06]}  f5 {[%clk 0:00:43]} 47. Nf2 {[%clk 0:00:07]}  e5 {[%clk 0:00:44]} 48. Nh3 {[%clk 0:00:06]}  e4+ {[%clk 0:00:44]} 49. fxe4+ {[%clk 0:00:07]}  fxe4+ {[%clk 0:00:44]} 50. Ke2 {[%clk 0:00:07]}  d3+ {[%clk 0:00:45]} 51. Kd1 {[%clk 0:00:08]}  Kd4 {[%clk 0:00:46]} 52. g4 {[%clk 0:00:08]}  Be3 {[%clk 0:00:44]} 53. Ng5 {[%clk 0:00:07]}  Bxg5 {[%clk 0:00:44]} 54. hxg5 {[%clk 0:00:08]}  e3 {[%clk 0:00:44]} 55. Kc1 {[%clk 0:00:08]}  Kc3 {[%clk 0:00:45]} 56. Kd1 {[%clk 0:00:07]}  Kb2 {[%clk 0:00:45]} 57. Ke1 {[%clk 0:00:07]}  Kxa2 {[%clk 0:00:45]} 58. Kf1 {[%clk 0:00:07]}  Kb2 {[%clk 0:00:46]} 59. Ke1 {[%clk 0:00:08]}  a2 {[%clk 0:00:46]} 60. Kf1 {[%clk 0:00:09]}  Kc2 {[%clk 0:00:46]} 61. Kg2 {[%clk 0:00:09]}  Kc3 {[%clk 0:00:47]} 62. Kf3 {[%clk 0:00:09]}  Kd4 {[%clk 0:00:48]} 63. Kf4 {[%clk 0:00:09]}  e2 {[%clk 0:00:47]} 64. Kf3 {[%clk 0:00:09]}  Ke5 {[%clk 0:00:46]} 65. Ke3 {[%clk 0:00:09]}  e1=Q+ {[%clk 0:00:46]} 66. Kxd3 {[%clk 0:00:10]}  Kf4 {[%clk 0:00:46]} 67. Kc2 {[%clk 0:00:10]}  a1=Q {[%clk 0:00:46]} 68. Kb3 {[%clk 0:00:08]}  Kxg5 {[%clk 0:00:46]} 69. Kc4 {[%clk 0:00:08]}  Kxg4 {[%clk 0:00:46]} 70. Kd3 {[%clk 0:00:09]}  Kh3 {[%clk 0:00:47]} 71. Kc2 {[%clk 0:00:09]}  g5 {[%clk 0:00:47]} 72. Kd3 {[%clk 0:00:10]}  g4 {[%clk 0:00:48]} 73. Kc4 {[%clk 0:00:10]}  g3 {[%clk 0:00:49]} 74. Kd3 {[%clk 0:00:11]}  g2 {[%clk 0:00:50]} 75. Kc2 {[%clk 0:00:11]}  g1=Q {[%clk 0:00:51]} 76. Kb3 {[%clk 0:00:11]}  g5 {[%clk 0:00:52]} 77. Kc2 {[%clk 0:00:12]}  g4 {[%clk 0:00:53]} 78. Kd3 {[%clk 0:00:12]}  g3 {[%clk 0:00:53]} 79. Kc2 {[%clk 0:00:13]}  g2 {[%clk 0:00:54]} 80. Kd3 {[%clk 0:00:14]}  Qgf2 {[%clk 0:00:53]} 81. Kc4 {[%clk 0:00:13]}  g1=Q {[%clk 0:00:53]} 82. Kd3 {[%clk 0:00:14]}  Qgg3+ {[%clk 0:00:53]} 83. Kc4 {[%clk 0:00:14]}  Qff4+ {[%clk 0:00:54]} 84. Kd5 {[%clk 0:00:14]}  Qee5+ {[%clk 0:00:54]} 85. Kc6 {[%clk 0:00:14]}  Qff6+ {[%clk 0:00:55]} 86. Kd7 {[%clk 0:00:13]}  Qgg7+ {[%clk 0:00:56]} 87. Kc8 {[%clk 0:00:13]}  Qa8# {[%clk 0:00:57]} 0-1


[Site "https://www.chess.com"]

[Event "Titled Tuesday Blitz May 25 2021"]
[White "Visakh N R"]
[Black "Dang, Hoang Son"]
[WhiteFideId "25012223"]
[BlackFideId "12402435"]
[WhiteElo "2428"]
[BlackElo "2248"]
[Result "1-0"]
[Round "11"]
[TimeControl "180+1"]
[Date "2021.05.25"]
[WhiteClock "0:00:46"]
[BlackClock "0:01:11"]

1. e4 {[%clk 0:03:00]}  g6 {[%clk 0:02:59]} 2. d4 {[%clk 0:02:58]}  Bg7 {[%clk 0:03:00]} 3. Nc3 {[%clk 0:02:58]}  a6 {[%clk 0:03:00]} 4. a4 {[%clk 0:02:56]}  d6 {[%clk 0:03:00]} 5. g3 {[%clk 0:02:56]}  Nf6 {[%clk 0:03:00]} 6. Bg2 {[%clk 0:02:56]}  O-O {[%clk 0:03:01]} 7. Nge2 {[%clk 0:02:56]}  Nc6 {[%clk 0:03:01]} 8. O-O {[%clk 0:02:56]}  e5 {[%clk 0:03:02]} 9. d5 {[%clk 0:02:55]}  Ne7 {[%clk 0:03:02]} 10. a5 {[%clk 0:02:53]}  c6 {[%clk 0:03:02]} 11. dxc6 {[%clk 0:02:52]}  bxc6 {[%clk 0:03:02]} 12. Na4 {[%clk 0:02:48]}  Be6 {[%clk 0:02:54]} 13. Nb6 {[%clk 0:02:45]}  Ra7 {[%clk 0:02:51]} 14. Qd3 {[%clk 0:02:39]}  Qc7 {[%clk 0:02:50]} 15. c4 {[%clk 0:02:37]}  c5 {[%clk 0:02:30]} 16. Nc3 {[%clk 0:02:27]}  Nc6 {[%clk 0:02:28]} 17. f4 {[%clk 0:02:01]}  exf4 {[%clk 0:02:06]} 18. Bxf4 {[%clk 0:01:58]}  Ne5 {[%clk 0:02:05]} 19. Bxe5 {[%clk 0:01:38]}  dxe5 {[%clk 0:02:05]} 20. Rad1 {[%clk 0:01:39]}  Nd7 {[%clk 0:01:56]} 21. Ncd5 {[%clk 0:01:16]}  Qd8 {[%clk 0:01:49]} 22. Qe3 {[%clk 0:01:08]}  Nxb6 {[%clk 0:01:43]} 23. axb6 {[%clk 0:01:07]}  Rd7 {[%clk 0:01:43]} 24. Qxc5 {[%clk 0:01:06]}  Kh8 {[%clk 0:01:39]} 25. b4 {[%clk 0:00:57]}  Rb7 {[%clk 0:01:28]} 26. Nc7 {[%clk 0:00:54]}  Qb8 {[%clk 0:01:21]} 27. Nxa6 {[%clk 0:00:48]}  Qa8 {[%clk 0:01:11]} 28. Nc7 {[%clk 0:00:48]}  Qa2 {[%clk 0:01:11]} 29. Nxe6 {[%clk 0:00:46]} 1-0


[Site "https://www.chess.com"]

[Event "Titled Tuesday Blitz May 25 2021"]
[White "Vovk, Orest"]
[Black "Polok, Kacper"]
[WhiteFideId "14113490"]
[BlackFideId "1137158"]
[WhiteElo "2203"]
[BlackElo "2196"]
[Result "1-0"]
[Round "11"]
[TimeControl "180+1"]
[Date "2021.05.25"]
[WhiteClock "0:00:04"]
[BlackClock "0:00:23"]

1. h3 {[%clk 0:02:59]}  b6 {[%clk 0:02:53]} 2. Nf3 {[%clk 0:02:44]}  Bb7 {[%clk 0:02:53]} 3. g3 {[%clk 0:02:40]}  f5 {[%clk 0:02:50]} 4. Bg2 {[%clk 0:02:38]}  Nf6 {[%clk 0:02:50]} 5. d3 {[%clk 0:02:13]}  g6 {[%clk 0:02:41]} 6. Nc3 {[%clk 0:01:29]}  Bg7 {[%clk 0:02:41]} 7. Bf4 {[%clk 0:01:30]}  d6 {[%clk 0:02:37]} 8. Qd2 {[%clk 0:01:29]}  Nbd7 {[%clk 0:02:32]} 9. O-O-O {[%clk 0:01:17]}  a5 {[%clk 0:02:25]} 10. g4 {[%clk 0:01:15]}  e6 {[%clk 0:02:16]} 11. Nh4 {[%clk 0:01:12]}  Bxg2 {[%clk 0:02:13]} 12. Nxg2 {[%clk 0:01:13]}  a4 {[%clk 0:02:13]} 13. a3 {[%clk 0:01:12]}  Qc8 {[%clk 0:02:08]} 14. Bh6 {[%clk 0:01:12]}  Bxh6 {[%clk 0:02:03]} 15. Qxh6 {[%clk 0:01:13]}  Qb7 {[%clk 0:02:04]} 16. Nf4 {[%clk 0:01:12]}  O-O-O {[%clk 0:01:53]} 17. Nxe6 {[%clk 0:01:12]}  Rde8 {[%clk 0:01:53]} 18. gxf5 {[%clk 0:01:12]}  gxf5 {[%clk 0:01:52]} 19. Ng7 {[%clk 0:01:12]}  Re5 {[%clk 0:01:48]} 20. f4 {[%clk 0:01:09]}  Rc5 {[%clk 0:01:40]} 21. d4 {[%clk 0:01:07]}  Rc4 {[%clk 0:01:40]} 22. Nxf5 {[%clk 0:01:05]}  Ne4 {[%clk 0:01:37]} 23. Ne7+ {[%clk 0:00:56]}  Kb8 {[%clk 0:01:36]} 24. Ned5 {[%clk 0:00:56]}  Re8 {[%clk 0:01:22]} 25. Qxh7 {[%clk 0:00:53]}  Ndf6 {[%clk 0:01:17]} 26. Nxf6 {[%clk 0:00:50]}  Nxf6 {[%clk 0:01:18]} 27. Qf7 {[%clk 0:00:49]}  Qc6 {[%clk 0:01:03]} 28. Qxf6 {[%clk 0:00:46]}  Rxc3 {[%clk 0:01:03]} 29. bxc3 {[%clk 0:00:45]}  Qxc3 {[%clk 0:01:03]} 30. Kb1 {[%clk 0:00:22]}  Rxe2 {[%clk 0:01:00]} 31. Qg6 {[%clk 0:00:17]}  Qxa3 {[%clk 0:00:56]} 32. Qd3 {[%clk 0:00:17]}  Qb4+ {[%clk 0:00:54]} 33. Ka2 {[%clk 0:00:16]}  Rf2 {[%clk 0:00:43]} 34. Rb1 {[%clk 0:00:15]}  Qa5 {[%clk 0:00:42]} 35. Rb5 {[%clk 0:00:12]}  Qa8 {[%clk 0:00:39]} 36. Rhb1 {[%clk 0:00:11]}  Qg2 {[%clk 0:00:37]} 37. R1b2 {[%clk 0:00:11]}  Rf3 {[%clk 0:00:36]} 38. Qc4 {[%clk 0:00:09]}  Qg3 {[%clk 0:00:33]} 39. Rxb6+ {[%clk 0:00:08]}  Kc8 {[%clk 0:00:31]} 40. Rb8+ {[%clk 0:00:05]}  Kd7 {[%clk 0:00:30]} 41. Qxa4+ {[%clk 0:00:04]}  Ke6 {[%clk 0:00:28]} 42. Re8+ {[%clk 0:00:03]}  Kf5 {[%clk 0:00:27]} 43. Qb5+ {[%clk 0:00:02]}  Kxf4 {[%clk 0:00:26]} 44. Rf8+ {[%clk 0:00:02]}  Ke3 {[%clk 0:00:24]} 45. Rxf3+ {[%clk 0:00:03]}  Qxf3 {[%clk 0:00:23]} 46. Qb3+ {[%clk 0:00:04]} 1-0


[Site "https://www.chess.com"]